bitfinex/quotes_ETHUSD_20251006
["timestamp","ask_amount","ask_price","bid_price","bid_amount"]
[1759758942323,2.16085101,4627.9,4626.9,2.473]
[1759758942518,2.16085101,4627.9,4625.9,0.25367]
[1759758942519,2.16090538,4627.7,4626.4,0.4377]
[1759758942732,0.0092,4628.0,4626.5,2.472]
[1759758942903,0.0092,4628.0,4626.6,0.50712147]
[1759758943095,0.0092,4628.0,4626.7,2.472]
[1759758943827,0.0092,4628.0,4626.9,2.16126872]
[1759758943994,0.0092,4628.0,4626.8,0.4377]
[1759758944201,0.0092,4628.0,4626.7,2.472]
[1759758944424,0.0092,4628.0,4626.5,0.4377]
[1759758944725,0.0092,4628.0,4626.8,2.472]
[1759758944726,2.16996297,4628.0,4626.8,2.472]
[1759758944934,2.16996297,4628.0,4625.6,0.4377]
[1759758944935,0.439,4627.9,4625.6,0.4377]
[1759758945131,2.16118565,4627.1,4625.6,0.4377]
[1759758945350,0.439,4627.2,4625.7,0.378]
[1759758945498,0.439,4627.2,4625.8,2.441]
[1759758945827,0.439,4627.2,4625.1,0.001]
[1759758945828,0.4482,4628.0,4625.9,0.4377]
[1759758946028,0.0092,4628.0,4625.9,0.4377]
[1759758946322,2.16088062,4627.8,4626.6,0.001]
[1759758946538,2.59981397,4627.9,4626.6,0.001]
[1759758946696,2.5998134,4627.9,4626.6,0.001]
[1759758947024,2.1610977,4627.3,4626.6,0.001]
[1759758947227,0.4377,4629.3,4629.0,9.63466919]
[1759758947424,2.16024713,4629.1,4629.0,9.63466919]
[1759758947796,2.281,4629.1,4629.0,9.63466919]
[1759758947997,4.753,4629.1,4629.0,9.63466919]
[1759758948236,4.861,4629.1,4629.0,9.63466919]
[1759758948436,2.58,4629.1,4629.0,9.63466919]
[1759758948808,0.108,4629.1,4629.0,9.63466919]
[1759758949348,0.547,4629.1,4629.0,9.63466919]
[1759758949628,2.26824713,4629.1,4629.0,9.63466919]
[1759758949835,2.70724713,4629.1,4629.0,9.63466919]
[1759758950605,0.547,4629.1,4629.0,9.63466919]
[1759758950801,0.108,4629.1,4629.0,9.63466919]
[1759758951237,2.26824713,4629.1,4629.0,9.63466919]
[1759758951410,5.10724713,4629.1,4629.0,9.63466919]
[1759758951817,4.66824713,4629.1,4629.0,9.63466919]
[1759758952013,2.947,4629.1,4629.0,9.63466919]
[1759758952244,5.10724713,4629.1,4629.0,9.63466919]
[1759758952941,2.947,4629.1,4629.0,9.63466919]
[1759758953642,5.10724713,4629.1,4629.0,9.63466919]
[1759758954246,6.94924713,4629.1,4629.0,9.63466919]
[1759758954541,9.86024713,4629.1,4629.0,9.63466919]
[1759758954743,0.58209534,4630.1,4629.0,9.63466919]
[1759758955049,0.42880313,4630.1,4629.0,10.07236919]
[1759758955227,2.82880313,4630.1,4629.0,10.07236919]
[1759758955558,0.42880313,4630.1,4629.0,10.07236919]
[1759758956115,0.42880313,4630.1,4629.0,12.54436919]
[1759758956335,2.15987386,4629.9,4629.0,12.54436919]
[1759758956513,2.41,4630.0,4629.0,12.54436919]
[1759758956950,0.01,4630.0,4629.0,12.10666919]
[1759758957126,2.482,4630.0,4629.0,12.10666919]
[1759758957325,2.482,4630.0,4629.0,9.63466919]
[1759758957942,0.01,4630.0,4629.0,9.63466919]
[1759758958317,0.0092,4630.0,4629.1,0.4377]
[1759758961951,2.16906277,4630.0,4629.2,2.471]
[1759758962132,0.0092,4630.0,4629.2,2.471]
[1759758962335,0.0092,4630.0,4629.0,9.63466919]
[1759758963031,2.4802,4630.0,4629.0,9.63466919]
[1759758963548,2.16024713,4629.1,4629.0,9.63466919]
[1759758964259,2.471,4629.6,4629.0,9.63466919]
[1759758964562,4.871,4629.6,4629.0,9.63566919]
[1759758964759,0.108,4629.1,4629.0,9.63566919]
[1759758966543,2.26824713,4629.1,4629.0,9.63566919]
[1759758967868,0.108,4629.1,4629.0,9.63566919]
[1759758968567,0.108,4629.1,4629.0,10.08316919]
[1759758968937,0.108,4629.1,4629.0,9.63566919]
[1759758969367,0.108,4629.1,4629.0,10.08316919]
[1759758970170,0.108,4629.1,4629.0,9.63566919]
[1759758971073,0.108,4629.1,4629.0,10.08316919]
[1759758971576,0.108,4629.1,4629.0,9.63566919]
[1759758971863,2.26824713,4629.1,4629.0,9.63566919]
[1759758973940,0.108,4629.1,4629.0,9.63566919]
[1759758974937,2.26824713,4629.1,4629.0,9.63566919]
[1759758975865,0.108,4629.1,4629.0,9.63566919]
[1759758976064,0.108,4629.1,4629.0,10.08316919]
[1759758976562,0.108,4629.1,4629.0,9.63566919]
[1759758976769,0.59015176,4630.0,4629.0,10.08316919]
[1759758976965,4.87,4629.9,4629.0,10.08316919]
[1759758977167,0.0112,4630.0,4629.1,2.47]
[1759758977370,2.15995856,4629.8,4629.1,2.47]
[1759758977542,2.17102725,4630.0,4629.1,2.47]
[1759758977739,0.0112,4630.0,4629.1,2.47]
[1759758977941,0.0112,4630.0,4629.2,0.4475]
[1759758978187,0.0112,4630.0,4629.3,2.47]
[1759758978977,0.0112,4630.0,4629.5,2.16005873]
[1759758979137,0.0112,4630.0,4629.6,2.47]
[1759758979447,0.0112,4630.0,4629.7,2.47]
[1759758979647,0.0112,4630.0,4629.8,2.47]
[1759758980076,0.0112,4630.0,4629.9,0.4475]
[1759758982858,0.0104,4630.0,4629.9,0.4475]
[1759758983557,0.0104,4630.0,4629.9,2.60737386]
[1759758983752,0.0104,4630.0,4629.9,1.17123308]
[1759758983965,0.0104,4630.0,4629.9,0.4475]
[1759758984279,0.0104,4630.0,4629.9,2.60737386]
[1759758984894,0.0104,4630.0,4629.9,5.64097386]
[1759758986790,0.0104,4630.0,4629.9,13.50428986]
[1759758986791,1e-08,4630.0,4629.9,13.50428986]
[1759758987377,1e-08,4630.0,4629.9,5.74897386]
[1759758987564,1e-08,4630.0,4629.9,4.48385651]
[1759758987893,1e-08,4630.0,4629.9,5.70997386]
[1759758988393,1e-08,4630.0,4629.9,3.5501]
[1759758988697,1e-08,4630.0,4629.9,5.70997386]
[1759758988906,1e-08,4630.0,4629.9,0.4475]
[1759758989269,1e-08,4630.0,4629.9,2.9165]
[1759758989500,1e-08,4630.0,4629.9,3.27151]
[1759758989866,1e-08,4630.0,4629.9,5.43138386]
[1759758990103,1e-08,4630.0,4629.9,3.27151]
[1759758990667,1e-08,4630.0,4629.9,5.43138386]
[1759758991304,1e-08,4630.0,4629.9,3.27151]
[1759758992906,1e-08,4630.0,4629.0,9.63566919]
[1759758993264,1e-08,4630.0,4629.1,2.469]
[1759758994190,1e-08,4630.0,4629.1,2.936]
[1759758996794,1e-08,4630.0,4629.0,9.63566919]
[1759758997010,1e-08,4630.0,4629.2,2.469]
[1759758997978,1e-08,4630.0,4629.0,9.63566919]
[1759758997979,2.16012103,4629.4,4629.0,9.63566919]
[1759758998303,0.4377,4629.3,4629.1,2.468]
[1759758998511,0.108,4629.5,4629.1,2.468]
[1759758998713,1e-08,4630.0,4629.2,0.4604]
[1759758998714,0.108,4629.8,4629.2,0.4604]
[1759758998869,1e-08,4630.0,4629.6,0.108]
[1759758999072,1e-08,4630.0,4629.7,2.468]
[1759759001312,1e-08,4630.0,4629.8,0.4604]
[1759759001483,1e-08,4630.0,4629.9,2.15987386]
[1759759001875,1e-08,4630.0,4629.9,2.62027386]
[1759759002070,1e-08,4630.0,4629.9,3.34509764]
[1759759002276,1e-08,4630.0,4629.9,8.75684964]
[1759759002498,1e-08,4630.0,4629.9,9.33228998]
[1759759002697,1e-08,4630.0,4629.9,9.57713798]
[1759759002977,1e-08,4630.0,4629.9,12.40469798]
[1759759003530,1e-08,4630.0,4629.9,14.00927998]
[1759759004724,0.20384139,4633.0,4630.9,2.79300745]
[1759759004899,0.20104419,4632.9,4630.9,5.75625605]
[1759759005218,0.0027972,4633.0,4630.9,5.75625605]
[1759759005219,0.20104419,4632.8,4630.9,6.21665605]
[1759759005426,0.0027972,4633.0,4630.9,6.21665605]
[1759759005725,0.0027972,4633.0,4630.9,11.53557539]
[1759759006597,0.0027972,4633.0,4630.9,8.90011339]
[1759759007025,0.0027972,4633.0,4630.9,8.61665605]
[1759759007193,0.4377,4632.7,4630.9,6.14865605]
[1759759007394,0.0092,4631.0,4630.1,0.75519011]
[1759759007618,0.0092,4631.0,4630.9,2.15940745]
[1759759007832,0.0092,4631.0,4630.9,4.62740745]
[1759759007996,0.0092,4631.0,4630.9,5.08780745]
[1759759008718,0.0092,4631.0,4630.9,5.72140745]
[1759759008907,0.0092,4631.0,4630.9,13.45545122]
[1759759009220,0.0092,4631.0,4630.9,11.82768322]
[1759759009423,0.0092,4631.0,4630.9,9.14949722]
[1759759010330,0.0092,4631.0,4630.9,6.68149722]
[1759759010530,0.0092,4631.0,4630.9,6.04789722]
[1759759010831,0.0092,4631.0,4630.9,3.18749722]
[1759759011002,0.0092,4631.0,4630.9,4.62640745]
[1759759011205,0.0092,4631.0,4630.9,2.26740745]
[1759759011398,0.0092,4631.0,4630.9,0.108]
[1759759011912,0.0092,4631.0,4630.9,4.73440745]
[1759759012120,0.0092,4631.0,4630.9,2.575]
[1759759012319,0.0092,4631.0,4630.9,0.108]
[1759759012498,0.0092,4631.0,4630.9,4.73440745]
[1759759012827,0.0092,4631.0,4630.9,5.4237974]
[1759759013404,0.0092,4631.0,4630.9,3.15638995]
[1759759013608,0.0092,4631.0,4630.9,4.62640745]
[1759759014011,0.0092,4631.0,4630.9,2.467]
[1759759014238,0.0092,4631.0,4630.3,0.4604]
[1759759014538,0.0092,4631.0,4630.6,2.15950807]
[1759759014700,0.0092,4631.0,4630.7,2.467]
[1759759014898,0.0092,4631.0,4629.9,2.4]
[1759759015204,0.4377,4630.9,4630.0,2.8164]
[1759759015417,0.4377,4630.8,4630.1,2.467]
[1759759015618,0.4377,4630.8,4629.8,2.15987689]
[1759759015899,0.4377,4630.8,4629.9,2.467]
[1759759016138,0.4377,4630.7,4629.1,2.16123654]
[1759759016314,0.4377,4630.6,4629.1,0.001]
[1759759016801,2.59729278,4630.6,4629.1,0.001]
[1759759017003,0.20102727,4630.5,4629.1,0.001]
[1759759017334,0.20102727,4630.5,4629.2,2.467]
[1759759017530,2.15974491,4630.2,4629.2,2.467]
[1759759017721,0.63872727,4630.1,4629.2,2.467]
[1759759017921,0.4377,4630.0,4629.2,2.467]
[1759759019362,0.43049234,4631.0,4629.2,2.467]
[1759759019523,0.86819234,4631.0,4629.3,0.28345734]
[1759759019854,0.4469,4631.0,4629.1,0.001]
[1759759020024,0.4469,4631.0,4629.2,2.467]
[1759759020224,0.63857999,4630.9,4629.3,2.467]
[1759759020421,0.4377,4630.8,4629.3,2.467]
[1759759020620,0.0092,4631.0,4630.2,2.159716]
[1759759020857,0.0092,4631.0,4629.1,2.401]
[1759759020858,0.0092,4631.0,4630.3,2.467]
[1759759021024,0.0092,4631.0,4630.4,2.467]
[1759759021229,0.0092,4631.0,4630.5,0.2467]
[1759759021558,0.0092,4631.0,4630.6,2.467]
[1759759021759,0.0112,4631.0,4630.6,2.467]
[1759759021956,0.0112,4631.0,4629.8,0.4604]
[1759759022127,0.0112,4631.0,4630.5,0.4604]
[1759759022329,0.0112,4631.0,4630.9,2.15940745]
[1759759022760,0.0112,4631.0,4630.9,2.61980745]
[1759759023255,0.0112,4631.0,4630.9,2.72780745]
[1759759024459,0.0112,4631.0,4630.9,0.108]
[1759759024839,0.0112,4631.0,4630.9,2.575]
[1759759025033,0.4668,4631.0,4630.9,2.575]
[1759759025229,0.4668,4631.0,4630.9,0.108]
[1759759025443,0.0112,4631.0,4630.9,2.575]
[1759759025828,0.0112,4631.0,4630.9,0.108]
[1759759026364,0.0112,4631.0,4630.9,2.575]
[1759759027347,0.0112,4631.0,4630.9,3.3054]
[1759759027533,0.0112,4631.0,4630.9,5.46480745]
[1759759027732,0.0112,4631.0,4630.9,4.99190745]
[1759759028166,0.0112,4631.0,4630.9,5.46480745]
[1759759028949,0.0112,4631.0,4630.9,4.99190745]
[1759759029155,0.0112,4631.0,4630.9,2.52490745]
[1759759029340,0.0112,4631.0,4630.9,0.108]
[1759759029670,0.4668,4631.0,4629.3,0.4729]
[1759759029843,0.4668,4631.0,4630.5,0.108]
[1759759030042,0.4556,4630.9,4630.6,2.467]
[1759759030369,0.4556,4630.8,4630.5,0.108]
[1759759030564,0.0112,4631.0,4630.6,2.467]
[1759759030870,0.4556,4630.7,4630.3,0.108]
[1759759031077,0.4556,4630.7,4630.4,2.467]
[1759759031649,0.4548,4630.7,4630.4,2.467]
[1759759032055,0.108,4630.9,4630.4,2.467]
[1759759032257,0.0112,4631.0,4629.1,0.001]
[1759759032458,0.108,4630.5,4629.9,0.108]
[1759759032671,0.108,4630.5,4630.0,2.467]
[1759759032862,0.0112,4631.0,4630.0,2.9399]
[1759759033059,0.0112,4631.0,4630.4,0.108]
[1759759033258,0.0112,4631.0,4630.9,0.108]
[1759759034267,0.0112,4631.0,4630.9,2.15940745]
[1759759034446,0.0112,4631.0,4630.9,3.17219819]
[1759759035277,0.0112,4631.0,4630.9,2.69929819]
[1759759035744,0.0112,4631.0,4630.9,5.16529819]
[1759759036441,0.0112,4631.0,4630.9,5.63819819]
[1759759036946,0.0112,4631.0,4630.9,5.16529819]
[1759759037153,0.0112,4631.0,4630.9,3.00589074]
[1759759037556,0.0112,4631.0,4630.9,2.574]
[1759759037764,0.0112,4631.0,4630.9,4.73340745]
[1759759038144,0.0112,4631.0,4630.9,2.574]
[1759759039551,0.4668,4631.0,4630.9,2.574]
[1759759039874,0.4668,4631.0,4629.1,0.75619011]
[1759759040177,0.65710606,4630.9,4629.1,0.97995843]
[1759759040379,0.108,4630.3,4629.2,2.466]
[1759759040565,0.0112,4631.0,4630.8,0.001]
[1759759041479,0.003,4631.7,4631.6,2.15908109]
[1759759041675,0.003,4631.7,4631.6,4.62508109]
[1759759041845,0.003,4631.7,4631.6,5.09798109]
[1759759042461,0.003,4631.7,4631.6,5.73158109]
[1759759042641,0.0027972,4633.0,4632.9,2.15847525]
[1759759042848,0.4378513,4634.9,4632.9,2.15847525]
[1759759042849,0.0094543,4635.1,4633.0,0.6336]
[1759759043083,0.0094543,4635.1,4634.1,2.15791631]
[1759759043262,15.69829076,4634.2,4633.5,0.4729]
[1759759043444,15.69829076,4634.2,4633.6,2.9389]
[1759759043647,15.69829076,4634.2,4633.9,2.15800492]
[1759759043878,15.69829076,4634.2,4634.1,2.15791631]
[1759759044082,15.69829076,4634.2,4634.1,2.63081631]
[1759759044257,15.69829076,4634.2,4634.1,3.26441631]
[1759759045181,15.69829076,4634.2,4634.1,5.09681631]
[1759759045386,15.69829076,4634.2,4634.1,2.15791631]
[1759759045689,15.69829076,4634.2,4632.8,2.4]
[1759759045893,15.69829076,4634.2,4633.5,0.6336]
[1759759046194,15.69829076,4634.2,4633.6,2.466]
[1759759046360,15.69829076,4634.2,4632.9,0.53137298]
[1759759046563,15.69829076,4634.2,4633.0,2.465]
[1759759046872,16.15389076,4634.2,4632.8,2.4]
[1759759047073,16.15389076,4634.2,4632.7,0.4729]
[1759759047074,16.15389076,4634.2,4633.2,2.15831521]
[1759759047273,16.15389076,4634.2,4632.9,2.465]
[1759759047481,16.15389076,4634.2,4633.2,2.15832707]
[1759759047690,16.15389076,4634.2,4630.9,2.4]
[1759759047975,16.15389076,4634.2,4632.0,2.15889464]
[1759759048149,15.69829076,4634.2,4633.5,2.15818576]
[1759759048348,15.69829076,4634.2,4633.6,2.465]
[1759759048873,15.69829076,4634.2,4634.0,2.15792086]
[1759759049048,15.69829076,4634.2,4634.1,4.62291631]
[1759759049246,15.69829076,4634.2,4634.1,5.09581631]
[1759759049444,15.69829076,4634.2,4634.1,4.62291631]
[1759759050477,15.69829076,4634.2,4634.1,0.108]
[1759759050659,15.69829076,4634.2,4634.1,2.573]
[1759759051488,15.69829076,4634.2,4633.2,0.4729]
[1759759051654,15.69829076,4634.2,4633.7,2.15808621]
[1759759051991,15.69829076,4634.2,4633.9,2.15799904]
[1759759052162,15.69829076,4634.2,4634.1,2.15791631]
[1759759052679,15.69829076,4634.2,4633.9,2.15800945]
[1759759052848,15.69829076,4634.2,4634.0,2.465]
[1759759053050,15.69829076,4634.2,4634.1,2.465]
[1759759053484,15.69829076,4634.2,4632.9,2.15845419]
[1759759053660,15.69829076,4634.2,4632.7,2.15855082]
[1759759053661,0.4334,4634.1,4632.7,2.15855082]
[1759759053866,0.4334,4634.1,4632.3,0.4618]
[1759759054170,0.4334,4634.1,4632.9,2.15847015]
[1759759054371,15.69829076,4634.2,4631.7,2.15899432]
[1759759054564,0.4334,4634.0,4631.8,2.12489943]
[1759759054878,0.4334,4633.9,4632.6,2.15857232]
[1759759055084,15.69829076,4634.2,4632.7,2.465]
[1759759055272,15.69829076,4634.2,4632.8,2.465]
[1759759055453,15.69829076,4634.2,4633.3,2.15828617]
[1759759055655,15.69829076,4634.2,4633.4,2.467]
[1759759055875,0.4396,4634.1,4633.4,2.467]
[1759759056055,0.4396,4634.1,4633.5,2.467]
[1759759056395,0.4388,4634.1,4633.5,2.467]
[1759759057093,0.4388,4634.1,4632.1,2.4]
[1759759057409,15.69829076,4634.2,4631.3,0.6336]
[1759759057607,15.69829076,4634.2,4632.6,2.1586025]
[1759759057773,15.69829076,4634.2,4632.7,3.25956495]
[1759759058111,15.69829076,4634.2,4632.8,2.467]
[1759759058293,0.4396,4634.1,4632.9,4.62547417]
[1759759058472,0.4396,4634.1,4633.0,4.62542685]
[1759759058789,0.4396,4634.1,4633.0,4.62542574]
[1759759058988,0.4416,4634.1,4633.1,2.15834023]
[1759759059213,0.4416,4634.1,4633.0,2.467]
[1759759059214,0.4416,4634.1,4632.2,0.4334]
[1759759059409,0.4416,4634.1,4631.3,2.4]
[1759759059410,0.4396,4634.0,4633.0,2.15841257]
[1759759059580,0.4396,4634.0,4632.2,0.4334]
[1759759059776,0.4396,4634.0,4632.9,2.15847371]
[1759759060008,0.4396,4634.0,4633.0,2.471]
[1759759060176,0.002,4634.1,4631.7,0.4334]
[1759759060177,2.59761436,4633.9,4631.7,0.4334]
[1759759060376,0.4396,4633.9,4632.4,2.15870701]
[1759759060703,0.4396,4633.8,4632.5,2.47]
[1759759060876,2.4,4633.6,4630.8,0.001]
[1759759061075,2.4,4633.4,4630.8,0.001]
[1759759061280,0.2001553,4633.3,4630.9,0.373]
[1759759061480,0.108,4632.4,4631.7,0.108]
[1759759061804,0.4396,4632.3,4631.8,1.677]
[1759759062004,0.108,4632.4,4631.8,1.677]
[1759759062204,0.4396,4632.5,4631.8,1.677]
[1759759062404,0.4396,4633.0,4631.8,1.677]
[1759759062619,2.83498681,4633.9,4631.9,0.38360248]
[1759759062780,0.4396,4633.8,4632.2,2.15875516]
[1759759062975,2.5976698,4633.8,4632.2,2.15875516]
[1759759063295,0.4396,4633.8,4632.1,0.4334]
[1759759063614,0.4396,4633.8,4632.9,2.1584616]
[1759759063923,0.4396,4633.8,4633.0,2.472]
[1759759064147,0.002,4634.1,4633.3,2.15828285]
[1759759064442,0.002,4634.1,4634.0,2.15796288]
[1759759064594,0.002,4634.1,4634.0,2.474]
[1759759065130,0.002,4634.1,4633.2,2.15829232]
[1759759065307,0.002,4634.1,4633.3,2.474]
[1759759065631,0.002,4634.1,4633.4,2.474]
[1759759065809,0.002,4634.1,4632.5,2.15866162]
[1759759066007,0.002,4634.1,4632.6,2.474]
[1759759066207,0.002,4634.1,4631.9,0.38360248]
[1759759066208,0.4396,4634.0,4632.8,2.15851656]
[1759759066519,0.4396,4634.0,4632.9,2.474]
[1759759066697,0.4396,4634.0,4633.0,2.476]
[1759759067239,0.002,4634.1,4633.0,2.476]
[1759759067399,0.002,4634.1,4633.0,2.9094]
[1759759067598,0.002,4634.1,4633.5,2.15819266]
[1759759068122,0.002,4634.1,4633.4,2.15824203]
[1759759068327,0.002,4634.1,4633.0,0.4334]
[1759759068532,0.4396,4634.0,4633.1,0.71]
[1759759069533,0.4396,4634.0,4632.5,2.15865281]
[1759759069737,0.4396,4633.9,4633.1,2.476]
[1759759069934,0.002,4634.1,4632.1,2.15880739]
[1759759069935,2.59769841,4633.8,4632.1,2.15880739]
[1759759070138,0.4396,4633.7,4632.2,2.15879698]
[1759759070337,0.002,4634.1,4632.1,0.43177566]
[1759759070650,0.002,4634.1,4631.5,2.15908791]
[1759759070651,2.15819574,4633.5,4631.5,2.15908791]
[1759759070833,0.4396,4633.6,4631.9,0.693]
[1759759070834,2.1582891,4633.3,4631.9,0.693]
[1759759071023,0.4396,4633.2,4631.9,0.693]
[1759759071415,0.20121733,4633.1,4631.9,0.693]
[1759759071614,0.4396,4633.7,4631.9,0.693]
[1759759071828,0.20119858,4633.6,4632.7,2.15852539]
[1759759072012,0.20119858,4633.5,4632.8,2.446]
[1759759072211,2.402,4634.1,4633.1,0.108]
[1759759072212,0.5476,4633.7,4633.1,0.108]
[1759759072412,0.20121045,4633.6,4633.1,0.108]
[1759759073440,0.4396,4633.5,4632.8,0.108]
[1759759073853,0.20124809,4633.4,4632.8,0.108]
[1759759074139,0.30924809,4633.4,4632.8,0.108]
[1759759074347,0.64084809,4633.3,4632.6,0.327]
[1759759074544,0.64084809,4633.3,4632.3,0.108]
[1759759074545,0.20124809,4633.2,4632.3,0.108]
[1759759074756,0.108,4633.0,4632.3,2.266738]
[1759759074914,0.108,4633.2,4632.6,0.108]
[1759759075248,0.002,4634.1,4632.7,0.4334]
[1759759075451,0.002,4634.1,4633.2,2.15829451]
[1759759075452,0.20334468,4634.1,4633.2,2.15829451]
[1759759075618,0.31134468,4634.1,4633.5,0.108]
[1759759075942,0.002,4634.1,4634.0,0.108]
[1759759076712,0.64298075,4634.1,4632.6,0.4334]
[1759759076918,0.20138241,4634.0,4632.1,0.4334]
[1759759077141,0.20138241,4634.0,4632.8,0.108]
[1759759077142,0.108,4633.5,4632.8,0.108]
[1759759077341,0.4396,4633.6,4632.1,0.4334]
[1759759077544,0.4396,4633.6,4631.5,0.4334]
[1759759077853,2.15833549,4633.2,4633.1,0.001]
[1759759078144,3.4573766,4633.2,4633.1,0.001]
[1759759078345,3.13699984,4633.2,4633.1,0.001]
[1759759078512,5.75935783,4633.2,4633.1,0.001]
[1759759078838,9.3723953,4633.2,4633.1,0.001]
[1759759079050,8.79295783,4633.2,4633.1,0.001]
[1759759079221,6.63562234,4633.2,4633.1,0.001]
[1759759079424,8.79395783,4633.2,4633.1,0.001]
[1759759079646,1.10502234,4633.2,4633.1,0.001]
[1759759079855,0.64099984,4633.2,4633.1,0.001]
[1759759080165,5.19198619,4633.1,4630.8,0.001]
[1759759080323,13.28294932,4632.2,4630.8,0.001]
[1759759080524,0.6336,4631.0,4630.8,0.001]
[1759759080756,0.20139984,4630.9,4630.8,0.001]
[1759759081357,0.4396,4632.2,4630.8,0.001]
[1759759081567,0.20102022,4632.1,4630.9,2.15940745]
[1759759081742,0.20102022,4632.1,4631.0,0.21604074]
[1759759082081,0.2009895,4632.0,4630.8,0.001]
[1759759082262,2.4,4632.7,4630.8,0.4344]
[1759759082467,0.200984,4632.6,4630.9,2.501]
[1759759082778,0.200984,4632.5,4631.2,2.15922318]
[1759759082947,2.59807791,4632.9,4631.2,2.15922318]
[1759759082948,2.15853678,4632.8,4631.2,2.15922318]
[1759759083277,2.15853678,4632.8,4630.8,2.59383023]
[1759759083278,0.20096643,4632.7,4630.8,0.4344]
[1759759083440,0.4396,4632.9,4630.8,0.4344]
[1759759083441,0.20096643,4632.6,4631.2,2.501]
[1759759083642,0.20096643,4632.5,4631.2,2.501]
[1759759083986,0.4396,4632.9,4631.1,2.503]
[1759759084286,0.58003,4633.9,4631.1,2.503]
[1759759084287,0.2009833,4632.8,4631.2,0.4383]
[1759759084438,0.002,4634.1,4631.4,2.15917433]
[1759759084640,0.4718,4634.0,4631.9,2.1589382]
[1759759084838,0.67275347,4633.9,4631.5,0.4383]
[1759759085073,4.55814917,4633.6,4631.9,2.1589364]
[1759759085245,4.55814917,4633.6,4629.0,11.18192916]
[1759759085246,2.15833549,4633.2,4629.0,11.18192916]
[1759759085454,2.15847092,4633.0,4631.4,2.15915923]
[1759759085653,2.83123171,4632.9,4631.3,0.25]
[1759759085854,0.20095347,4632.8,4631.3,2.15921109]
[1759759086378,0.20095347,4632.8,4631.1,2.504]
[1759759086582,2.35950394,4632.8,4631.1,2.504]
[1759759086752,0.15095347,4632.7,4631.1,2.504]
[1759759086950,0.15095347,4632.7,4631.2,2.15925387]
[1759759087165,0.15095347,4632.7,4631.3,2.15922088]
[1759759087483,0.108,4632.4,4631.7,0.108]
[1759759087678,0.4718,4633.6,4631.7,0.108]
[1759759087867,0.4718,4633.6,4631.7,0.2853]
[1759759087868,0.108,4632.8,4631.7,0.2853]
[1759759088079,0.108,4632.8,4632.2,0.108]
[1759759088489,0.108,4632.8,4631.9,0.108]
[1759759088657,0.108,4632.4,4631.7,0.108]
[1759759089498,0.4718,4632.3,4630.6,0.2853]
[1759759089787,0.108,4631.7,4631.0,0.108]
[1759759090957,0.6336,4632.2,4630.4,2.15959421]
[1759759091162,0.108,4631.4,4630.8,0.108]
[1759759091489,0.108,4631.4,4630.5,0.108]
[1759759091655,2.4,4631.4,4630.0,2.502]
[1759759091988,2.4,4631.4,4630.3,0.108]
[1759759091989,0.108,4630.9,4630.3,0.108]
[1759759092888,0.108,4630.9,4629.2,0.2853]
[1759759092889,0.108,4630.6,4630.0,0.108]
[1759759093055,0.108,4630.6,4629.3,2.502]
[1759759093380,0.108,4630.6,4629.7,0.108]
[1759759093772,0.108,4630.0,4629.3,0.108]
[1759759094178,2.4,4631.2,4629.2,2.503]
[1759759094179,0.6336,4631.1,4629.2,2.503]
[1759759094383,0.108,4630.4,4630.0,2.15978516]
[1759759094583,0.4718,4631.2,4629.3,0.2853]
[1759759094584,0.108,4630.7,4630.1,0.108]
[1759759095590,2.1590444,4631.7,4629.3,0.2853]
[1759759095591,0.4718,4631.9,4629.3,2.1601538]
[1759759095774,1.04265126,4633.1,4630.2,0.2853]
[1759759095975,0.108,4631.7,4631.1,0.108]
[1759759096762,0.108,4631.4,4630.8,0.108]
[1759759097503,0.108,4631.9,4631.2,0.108]
[1759759097792,0.108,4631.9,4631.5,2.15911645]
[1759759098160,0.4738,4632.8,4631.7,2.15903244]
[1759759098361,0.108,4632.3,4631.7,0.108]
[1759759098775,0.002,4632.8,4631.7,0.33471658]
[1759759099007,0.11,4632.8,4631.7,0.51201658]
[1759759099180,0.11,4632.8,4632.2,0.108]
[1759759099771,0.11,4632.8,4632.3,2.15874631]
[1759759100102,0.002,4632.8,4632.7,0.108]
[1759759100470,0.002,4632.8,4632.7,2.26656843]
[1759759100767,0.002,4632.8,4632.7,2.44386843]
[1759759101593,0.002,4632.8,4632.7,2.15856843]
[1759759101795,0.002,4632.8,4632.5,2.501]
[1759759102095,0.002,4632.8,4632.6,2.5]
[1759759102295,0.002,4632.8,4632.6,2.1585807]
[1759759102499,0.002,4632.8,4632.7,2.15856843]
[1759759103064,0.002,4632.8,4632.7,2.5]
[1759759103797,0.002,4632.8,4632.7,4.65856843]
[1759759104094,0.002,4632.8,4632.7,2.15856843]
[1759759104288,0.002,4632.8,4632.7,4.65756843]
[1759759104492,0.002,4632.8,4632.7,2.15856843]
[1759759104666,0.002,4632.8,4632.7,5.37458962]
[1759759104871,0.002,4632.8,4632.7,4.65756843]
[1759759105225,0.0012,4632.8,4632.7,4.94286843]
[1759759105765,0.0012,4632.8,4632.7,4.65756843]
[1759759106075,0.0012,4632.8,4632.7,4.65656843]
[1759759106275,0.0012,4632.8,4632.7,4.94186843]
[1759759106475,0.0012,4632.8,4632.7,4.65656843]
[1759759106878,0.0012,4632.8,4631.9,0.2853]
[1759759107078,0.0012,4632.8,4632.5,2.15862131]
[1759759107398,0.0012,4632.8,4632.7,2.15856843]
[1759759107588,0.0012,4632.8,4632.7,2.498]
[1759759107903,0.0012,4632.8,4632.7,4.65656843]
[1759759108104,0.0012,4632.8,4632.7,2.498]
[1759759108299,0.0012,4632.8,4632.7,4.65656843]